fUST/lending_fUST_20250301
["ID","MTS","AMOUNT","RATE_DAILY","PERIOD"]
[354887749,1740783038484,-350.0,0.00047696,30]
[354887750,1740783038494,-350.0,0.00047696,30]
[354887751,1740783038503,-350.0,0.00047696,30]
[354887752,1740783038513,-350.0,0.00047696,30]
[354887753,1740783038523,-447.18107019,0.00047696,30]
[354887754,1740783038532,-174.91972349,0.000477,2]
[354887755,1740783038541,-151.0,0.00047771,2]
[354887756,1740783038551,-500.0,0.00047771,2]
[354887757,1740783038561,-221.467,0.0004779,81]
[354887758,1740783038570,-15099.6563238,0.000478,120]
[354887759,1740783038580,-222000.0,0.000478,2]
[354887760,1740783038591,-5000.0,0.000478,120]
[354887761,1740783038600,-5000.0,0.000478,120]
[354887762,1740783038611,-5000.0,0.000478,120]
[354887763,1740783038621,-5000.0,0.000478,120]
[354887764,1740783038630,-5000.0,0.000478,120]
[354887765,1740783038640,-5000.0,0.000478,120]
[354887766,1740783038649,-5000.0,0.000478,120]
[354887767,1740783038659,-5000.0,0.000478,120]
[354887768,1740783038669,-151.0,0.000478,120]
[354887769,1740783038679,-151.0,0.000478,120]
[354887770,1740783038688,-246.330403,0.000478,7]
[354887771,1740783038698,-223.678713,0.000478,120]
[354887772,1740783038707,-151.0,0.000478,120]
[354887773,1740783038717,-223.678713,0.000478,120]
[354887774,1740783038726,-192.3253,0.000478,120]
[354887775,1740783038737,-151.0,0.000478,120]
[354887777,1740783038747,-151.0,0.000478,110]
[354887778,1740783038757,-151.0,0.000478,120]
[354887779,1740783038766,-151.0,0.000478,110]
[354887780,1740783038775,-151.0,0.000478,120]
[354887781,1740783038786,-165.409859,0.000478,120]
[354887782,1740783038796,-165.409859,0.000478,120]
[354887783,1740783038805,-151.0,0.000478,120]
[354887784,1740783038815,-151.0,0.000478,120]
[354887785,1740783038825,-569.797677,0.000478,120]
[354887786,1740783038834,-569.797677,0.000478,120]
[354887787,1740783038843,-151.0,0.000478,120]
[354887788,1740783038853,-151.0,0.000478,120]
[354887789,1740783038862,-153.449019,0.000478,120]
[354887790,1740783038871,-153.449019,0.000478,120]
[354887791,1740783038881,-483.90655533,0.00047836,2]
[354887792,1740783038890,-500.0,0.00047899,120]
[354887793,1740783038900,-169.13231235,0.00047899,120]
[354887794,1740783038909,-278.54275271,0.00047899,120]
[354887795,1740783038919,-500.0,0.00047899,31]
[354887796,1740783038929,-500.0,0.00047899,31]
[354887797,1740783038938,-500.0,0.00047899,120]
[354887798,1740783038947,-185.62360856,0.00047899,120]
[354887799,1740783038957,-500.0,0.00047899,31]
[354887800,1740783038967,-500.0,0.00047899,120]
[354887801,1740783038976,-567.70915849,0.00047899,31]
[354887802,1740783038985,-500.0,0.00047899,31]
[354887803,1740783038995,-386.16106792,0.00047899,31]
[354887804,1740783039004,-500.0,0.00047899,120]
[354887805,1740783039014,-222.41011795,0.00047899,120]
[354887806,1740783039023,-280701.82872732,0.000479,120]
[354887807,1740783039033,-6917.1,0.000479,30]
[354887808,1740783039044,-106425.37,0.000479,30]
[354887809,1740783039054,-565.8,0.000479,30]
[354887810,1740783039063,-1233.8,0.000479,30]
[354887811,1740783039073,-6471.66,0.000479,30]
[354887812,1740783039083,-253.1373,0.000479,120]
[354887813,1740783039092,-151.0,0.000479,120]
[354887814,1740783039102,-151.0,0.000479,29]
[354887815,1740783039112,-151.0,0.000479,120]
[354887816,1740783039121,-151.0,0.000479,120]
[354887817,1740783039130,-151.0,0.000479,120]
[354887818,1740783039141,-151.0,0.000479,120]
[354887819,1740783039150,-151.0,0.000479,120]
[354887820,1740783039159,-151.0,0.000479,120]
[354887821,1740783039169,-242.175795,0.000479,120]
[354887822,1740783039178,-202.259863,0.000479,120]
[354887823,1740783039188,-202.259863,0.000479,120]
[354887824,1740783039197,-151.0,0.000479,120]
[354887825,1740783039207,-151.0,0.000479,120]
[354887826,1740783039216,-151.0,0.000479,120]
[354887827,1740783039225,-151.0,0.000479,120]
[354887828,1740783039234,-151.0,0.000479,120]
[354887829,1740783039244,-151.0,0.000479,120]
[354887830,1740783039253,-151.0,0.000479,120]
[354887831,1740783039262,-152.372761,0.000479,120]
[354887832,1740783039272,-151.0,0.000479,120]
[354887833,1740783039281,-154.05562,0.000479,120]
[354887834,1740783039291,-151.0,0.000479,120]
[354887835,1740783039300,-151.0,0.000479,120]
[354887836,1740783039309,-151.0,0.000479,120]
[354887837,1740783039319,-151.0,0.000479,30]
[354887838,1740783039328,-151.0,0.000479,30]
[354887839,1740783039337,-151.0,0.000479,30]
[354887840,1740783039347,-151.0,0.000479,120]
[354887841,1740783039356,-151.0,0.000479,120]
[354887842,1740783039365,-308.678562,0.000479,120]
[354887843,1740783039375,-151.0,0.000479,120]
[354887844,1740783039384,-308.678562,0.000479,120]
[354887845,1740783039394,-308.678562,0.000479,120]
[354887846,1740783039403,-308.678562,0.000479,120]
[354887847,1740783039413,-308.678562,0.000479,120]
[354887848,1740783039422,-308.678562,0.000479,120]
[354887849,1740783039431,-376.890639,0.000479,120]
[354887850,1740783039441,-376.890639,0.000479,120]
[354887851,1740783039451,-376.890639,0.000479,120]
[354887852,1740783039460,-376.890639,0.000479,120]
[354887853,1740783039469,-376.890639,0.000479,120]
[354887854,1740783039478,-376.890639,0.000479,120]
[354887855,1740783039487,-153.458558,0.000479,120]
[354887856,1740783039496,-151.0,0.000479,120]
[354887857,1740783039506,-151.000001,0.000479,120]
[354887858,1740783039515,-2499.961505,0.000479,120]
[354887859,1740783039525,-2499.961505,0.000479,120]
[354887860,1740783039534,-2499.961505,0.000479,120]
[354887861,1740783039543,-2499.961505,0.000479,120]
[354887862,1740783039554,-2499.961505,0.000479,120]
[354887863,1740783039563,-2499.961505,0.000479,120]
[354887864,1740783039572,-285.730142,0.000479,120]
[354887865,1740783039580,-285.730142,0.000479,120]
[354887866,1740783039589,-285.730142,0.000479,120]
[354887867,1740783039599,-285.730142,0.000479,120]
[354887868,1740783039608,-285.730142,0.000479,120]
[354887869,1740783039617,-285.730142,0.000479,120]
[354887870,1740783039627,-151.0,0.000479,120]
[354887871,1740783039636,-151.0,0.000479,120]
[354887872,1740783039645,-151.0,0.000479,120]
[354887873,1740783039655,-151.0,0.000479,120]
[354887875,1740783039664,-151.0,0.000479,120]
[354887877,1740783039673,-151.0,0.000479,120]
[354887878,1740783039683,-575.81155,0.000479,120]
[354887879,1740783039692,-575.81155,0.000479,120]
[354887880,1740783039701,-575.81155,0.000479,120]
[354887881,1740783039711,-575.81155,0.000479,120]
[354887882,1740783039720,-575.81155,0.000479,120]
[354887883,1740783039730,-198.0,0.000479,120]
[354887884,1740783039743,-575.81155,0.000479,120]
[354887885,1740783039753,-206.09276609,0.000479,11]
[354887886,1740783039762,-151.0,0.000479,120]
[354887887,1740783039772,-177.823027,0.000479,120]
[354887888,1740783039782,-151.0,0.000479,120]
[354887889,1740783039792,-292.205358,0.000479,120]
[354887890,1740783039802,-223.678713,0.000479,120]
[354887891,1740783039811,-223.678713,0.000479,120]
[354887892,1740783039822,-223.678713,0.000479,120]
[354887893,1740783039831,-151.0,0.000479,120]
[354887894,1740783039841,-241.862043,0.000479,120]
[354887895,1740783039851,-223.678713,0.000479,120]
[354887896,1740783039860,-223.678713,0.000479,120]
[354887897,1740783039869,-223.678713,0.000479,120]
[354887898,1740783039878,-151.0,0.000479,120]
[354887899,1740783039888,-151.0,0.000479,120]
[354887900,1740783039897,-151.0,0.000479,120]
[354887901,1740783039906,-151.0,0.000479,110]
[354887902,1740783039915,-151.0,0.000479,110]
[354887903,1740783039925,-151.0,0.000479,110]
[354887904,1740783039934,-151.0,0.000479,120]
[354887905,1740783039943,-151.0,0.000479,120]
[354887907,1740783039953,-151.0,0.000479,120]
[354887909,1740783039962,-151.0,0.000479,110]
[354887910,1740783039972,-151.0,0.000479,110]
[354887911,1740783039981,-151.0,0.000479,110]
[354887912,1740783039991,-165.409859,0.000479,120]
[354887913,1740783040000,-165.409859,0.000479,120]
[354887914,1740783040009,-165.409859,0.000479,120]
[354887915,1740783040018,-165.409859,0.000479,120]
[354887916,1740783040028,-165.409859,0.000479,120]
[354887917,1740783040037,-165.409859,0.000479,120]
[354887918,1740783040046,-151.0,0.000479,120]
[354887919,1740783040056,-151.0,0.000479,120]
[354887920,1740783040065,-269.684248,0.000479,120]
[354887921,1740783040074,-569.797677,0.000479,120]
[354887922,1740783040083,-569.797677,0.000479,120]
[354887923,1740783040093,-569.797677,0.000479,120]
[354887925,1740783040103,-569.797677,0.000479,120]
[354887926,1740783040112,-569.797677,0.000479,120]
[354887928,1740783040121,-569.797677,0.000479,120]
[354887929,1740783040131,-151.0,0.000479,120]
[354887930,1740783040140,-151.0,0.000479,120]
[354887931,1740783040149,-151.0,0.000479,120]
[354887932,1740783040159,-151.0,0.000479,120]
[354887933,1740783040168,-151.0,0.000479,120]
[354887934,1740783040177,-151.0,0.000479,120]
[354887935,1740783040186,-153.449019,0.000479,120]
[354887936,1740783040196,-153.449019,0.000479,120]
[354887937,1740783040205,-153.449019,0.000479,120]
[354887938,1740783040215,-153.449019,0.000479,120]
[354887939,1740783040224,-153.449019,0.000479,120]
[354887940,1740783040234,-153.449019,0.000479,120]
[354887941,1740783040243,-151.0,0.00047936,120]
[354887942,1740783040252,-153.554292,0.00047972,2]
[354887943,1740783040262,-157.771,0.00047989,120]
[354887944,1740783040271,-151.0,0.00048,21]
[354887945,1740783040280,-215.0,0.00048,90]
[354887946,1740783040290,-483.90655533,0.00048082,2]
[354887947,1740783040299,-49579.53748084,0.0004809,120]
[354887948,1740783040315,-4250.0,0.0004809,120]
[354887983,1740783142422,4900.0,0.00042242,2]
[354887984,1740783142890,500.0,0.00033,2]
[354887985,1740783143234,500.0,0.00033,2]
[354887986,1740783143577,500.0,0.00033,2]
[354887987,1740783143931,500.0,0.00033,2]
[354887988,1740783144261,500.0,0.00033,2]
[354887989,1740783144631,500.0,0.00033,2]
[354887990,1740783144945,500.0,0.00033,2]
[354887991,1740783145269,55.58865953,0.00033,2]
[354887992,1740783145552,-150.0,0.00033,2]
[354887993,1740783146065,-150.0,0.00033,2]
[354887994,1740783146836,-144.41134047,0.00033,2]
[354887995,1740783146860,-5.58865953,0.00033,10]
[354887996,1740783150149,-150.0,0.00033,10]
[354887997,1740783150775,-150.0,0.00033,10]
[354887998,1740783151936,-150.0,0.00033,10]
[354887999,1740783152677,-44.41134047,0.00033,10]
[354888000,1740783152700,-105.58865953,0.00033,10]
[354888001,1740783153626,-150.0,0.00033,10]
[354888002,1740783154700,-150.0,0.00033,10]
[354888003,1740783157831,-94.41134047,0.00033,10]
[354888004,1740783157855,-55.58865953,0.00033,10]
[354888005,1740783158425,-150.0,0.00033,10]
[354888006,1740783159096,-150.0,0.00033,10]
[354888007,1740783159654,-144.41134047,0.00033,10]
[354888008,1740783159679,-5.58865953,0.00033,10]
[354888009,1740783169978,-150.0,0.00033,10]
[354888010,1740783171275,-150.0,0.00033,10]
[354888011,1740783172529,-150.0,0.00033,10]
[354888012,1740783173794,-44.41134047,0.00033,10]
[354888013,1740783173827,-105.58865953,0.00033,10]
[354888014,1740783179702,-150.0,0.00033,10]
[354888015,1740783180847,-150.0,0.00033,10]
[354888016,1740783187762,-94.41134047,0.00033,10]
[354888017,1740783187985,-55.58865953,0.00033,10]
[354888018,1740783189107,-150.0,0.00033,10]
[354888019,1740783190197,-150.0,0.00033,10]
[354888020,1740783191380,-144.41134047,0.00033,10]
[354888021,1740783191407,-5.58865953,0.00033,10]
[354888022,1740783193217,-150.0,0.00033,10]
[354888023,1740783194390,-150.0,0.00033,10]
[354888024,1740783195732,-150.0,0.00033,10]
[354888025,1740783199958,-44.41134047,0.00033,10]
[354888026,1740783199988,-105.58865953,0.00033,10]
[354888027,1740783448762,-150.0,0.00033,10]
[354888028,1740783538925,-150.0,0.00033,10]
[354888029,1740783584049,-150.0,0.00032877,2]
[354888030,1740784028101,-40.60995,0.00032877,2]
[354888031,1740784028125,-254.13550172,0.00033,10]
[354888032,1740784028150,-340.27583975,0.00033,2]
[354888033,1740784028172,-206.968073,0.00035057,2]
[354888034,1740784028194,-356.6448946,0.00035112,2]
[354888035,1740784028215,-1082.0993474,0.00035113,2]
[354888036,1740784028237,-399.9052997,0.00036552,2]
[354888037,1740784028259,-400.0,0.00036888,2]
[354888038,1740784028280,-3696.73302208,0.00036889,2]
[354888039,1740784040143,-8140.38717902,0.00036889,2]
[354888040,1740784040165,-163.0,0.00037085,2]
[354888041,1740784040185,-786.629973,0.00037185,2]
[354888042,1740784040205,-1743.4366171,0.00037324,2]
[354888043,1740784040228,-205.67844351,0.000379,8]
[354888044,1740784040248,-154.93,0.00038488,2]
[354888045,1740784040269,-241.8543959,0.00038497,120]
[354888046,1740784040290,-9922.82495447,0.00038498,2]
[354888047,1740784050124,-77.17504553,0.00038498,2]
[354888048,1740784050150,-205.67844343,0.00039208,8]
[354888049,1740784050171,-560.0,0.00039475,5]
[354888050,1740784050194,-205.67844343,0.00040515,8]
[354888051,1740784050218,-205.67844343,0.00041823,9]
[354888052,1740784050239,-999.73089517,0.0004223,4]
[354888053,1740784050260,-500.0,0.0004223,31]
[354888054,1740784050281,-500.0,0.0004223,31]
[354888055,1740784050303,-408.98027915,0.0004223,31]
[354888056,1740784050330,-500.0,0.0004223,2]
[354888057,1740784050353,-500.0,0.0004223,31]
[354888058,1740784050376,-500.0,0.0004223,2]
[354888059,1740784050397,-499.924,0.0004223,31]
[354888060,1740784050421,-500.0,0.0004223,31]
[354888061,1740784050444,-500.0,0.0004223,2]
[354888062,1740784050467,-500.0,0.0004223,31]
[354888063,1740784050490,-500.0,0.0004223,2]
[354888064,1740784050513,-500.0,0.0004223,2]
[354888065,1740784050536,-500.0,0.0004223,31]
[354888066,1740784050559,-500.0,0.0004223,2]
[354888067,1740784050583,-500.0,0.0004223,2]
[354888068,1740784050605,-500.0,0.0004223,31]
[354888069,1740784050629,-361.54880763,0.0004223,2]
[354888070,1740784050652,-500.0,0.0004223,2]
[354888071,1740784050675,-500.0,0.0004223,31]
[354888072,1740784050698,-500.0,0.0004223,2]
[354888073,1740784050720,-375.0,0.0004223,31]
[354888074,1740784050742,-500.0,0.0004223,2]
[354888075,1740784050764,-500.0,0.0004223,31]
[354888076,1740784050786,-500.0,0.0004223,31]
[354888077,1740784050808,-500.0,0.0004223,31]
[354888078,1740784050830,-500.0,0.0004223,31]
[354888079,1740784050851,-500.0,0.0004223,31]
[354888080,1740784050873,-500.0,0.0004223,31]
[354888081,1740784050896,-500.0,0.0004223,31]
[354888082,1740784050918,-500.0,0.0004223,31]
[354888083,1740784050941,-500.0,0.0004223,31]
[354888084,1740784050964,-500.0,0.0004223,31]
[354888085,1740784050986,-500.0,0.0004223,31]
[354888086,1740784051008,-500.0,0.0004223,31]
[354888087,1740784051031,-234.51235841,0.0004223,31]
[354888088,1740784051053,-500.0,0.0004223,31]
[354888089,1740784051079,-500.0,0.0004223,31]
[354888090,1740784051101,-500.0,0.0004223,31]
[354888091,1740784051124,-500.0,0.0004223,31]
[354888092,1740784051146,-154.93,0.00042232,2]
[354888093,1740784051167,-154.93,0.00042232,2]
[354888094,1740784051188,-154.93,0.00042232,2]
[354888095,1740784051209,-154.93,0.00042232,2]
[354888096,1740784051230,-154.93,0.00042232,2]
[354888097,1740784051250,-154.93,0.00042232,2]
[354888098,1740784051270,-154.93,0.00042232,2]
[354888099,1740784051290,-154.93,0.00042232,2]
[354888100,1740784051310,-154.93,0.00042232,2]
[354888101,1740784051331,-20000.0,0.00042242,2]
[354888102,1740784051352,-783.0,0.00042243,5]
[354888103,1740784051372,-160.0,0.0004295,2]
[354888104,1740784051393,-19618.25597294,0.0004295,2]
[354888105,1740784051415,-205.67844343,0.00043131,9]
[354888106,1740784051435,-154.93,0.00043435,2]
[354888107,1740784051660,-387.17,0.00043824,30]
[354888108,1740784051682,-500.0,0.00043835,2]
[354888109,1740784051705,-205.67844343,0.00044438,10]
[354888110,1740784051726,-221.467,0.00044572,71]
[354888111,1740784051747,-322.64,0.0004495,30]
[354888112,1740784051767,-268.87,0.0004495,30]
[354888113,1740784051788,-224.06,0.0004495,30]
[354888114,1740784051809,-186.72,0.0004498,30]
[354888115,1740784051831,-778.0,0.0004498,30]
[354888116,1740784051851,-154.93,0.00044989,2]
[354888117,1740784051872,-155.6,0.0004499,30]
[354888118,1740784051893,-151.0,0.00045,120]
[354888119,1740784051913,-5000.0,0.00045,120]
[354888120,1740784051934,-151.0,0.00045,120]
[354888121,1740784051955,-1097.0,0.00045205,5]
[354888122,1740784051974,-150.0,0.000453,120]
[354888123,1740784051997,-205.67844343,0.00045746,10]
[354888124,1740784052017,-404.93031719,0.000458,2]
[354888125,1740784052037,-5170.23,0.0004609,10]
[354888126,1740784052059,-42315.11487495,0.000461,120]
[354888127,1740784052243,-3125.08723183,0.0004213,120]
[354888128,1740784052266,-4382.99760211,0.000461,120]
[354888133,1740784153106,-189.091038,0.0004169,2]
[354888134,1740784153130,-189.091038,0.00043775,2]
[354888135,1740784153154,-500.0,0.00043835,2]
[354888136,1740784153177,-500.0,0.00043937,2]
[354888137,1740784153202,-269.95354479,0.00044,2]
[354888138,1740784153223,-550.0,0.00044174,5]
[354888139,1740784153245,-3125.08723183,0.00044175,120]
[354888150,1740784232366,-550.0,0.00044999,5]
[354888151,1740784232376,-5000.0,0.00045,120]
[354888152,1740784232386,-189.091038,0.00045859,2]
[354888153,1740784232395,-12861.11272455,0.00046099,120]
[354888176,1740784238181,-12292.32727545,0.00046099,120]
[354888178,1740784238191,-500.0,0.00046099,120]
[354888179,1740784238202,-375.0,0.00046099,120]
[354888181,1740784238212,-595.72764529,0.00046099,2]
[354888183,1740784238222,-414.9458176,0.00046099,120]
[354888185,1740784238232,-25004.97416846,0.000461,120]
[354888186,1740784238241,-5000.0,0.000461,120]
[354888188,1740784238251,-3125.08723183,0.0004622,120]
[354888190,1740784238261,-240.13,0.000463,120]
[354888191,1740784238271,-151.0,0.000469,28]
[354888193,1740784238279,-205.67844343,0.000469,10]
[354888194,1740784238289,-151.0,0.000471,22]
[354888196,1740784238299,-1210.87595967,0.00047106,2]
[354888198,1740784238308,-1884.4739695,0.00047207,4]
[354888199,1740784238317,-1210.87595965,0.00047255,2]
[354888201,1740784238327,-151.0,0.000474,24]
[354888203,1740784238336,-1210.87595965,0.00047403,2]
[354888204,1740784238347,-500.0,0.00047497,2]
[354888206,1740784238357,-1138.0,0.000475,30]
[354888208,1740784238366,-151.0,0.000475,30]
[354888209,1740784238375,-800.0,0.00047526,14]
[354888211,1740784238384,-800.0,0.00047546,14]
[354888213,1740784238393,-1210.87595965,0.00047552,2]
[354888214,1740784238403,-151.0,0.00047567,2]
[354888216,1740784238412,-500.0,0.00047567,2]
[354888218,1740784238422,-4308.52,0.00047586,10]
[354888219,1740784238431,-3590.43,0.00047586,10]
[354888221,1740784238440,-500.0,0.00047594,2]
[354888223,1740784238449,-500.0,0.00047595,2]
[354888224,1740784238458,-500.0,0.00047595,2]
[354888226,1740784238468,-500.0,0.00047595,2]
[354888228,1740784238477,-566.19,0.00047595,2]
[354888229,1740784238486,-1904.28523483,0.00047596,2]
[354888239,1740784238608,-72.56303387,0.00047596,2]
[354888241,1740784238621,-220023.1517313,0.00047596,2]
[354888243,1740784238631,-562.18838797,0.00047599,120]
[354888244,1740784238640,-500.0,0.00047599,31]
[354888246,1740784238650,-500.0,0.00047599,120]
[354888248,1740784238660,-241.61758908,0.00047599,120]
[354888250,1740784238670,-500.0,0.00047599,31]
[354888251,1740784238679,-500.0,0.00047599,31]
[354888253,1740784238689,-399.13394878,0.00047599,31]
[354888255,1740784238699,-500.0,0.00047599,120]
[354888257,1740784238709,-500.0,0.00047599,31]
[354888258,1740784238719,-500.0,0.00047599,120]
[354888260,1740784238728,-500.0,0.00047599,31]
[354888262,1740784238738,-500.0,0.00047599,31]
[354888263,1740784238747,-500.0,0.00047599,120]
[354888265,1740784238758,-500.0,0.00047599,120]
[354888267,1740784238767,-373.48739498,0.00047599,120]
[354888268,1740784238777,-146984.16,0.000476,30]
[354888270,1740784238787,-653.98,0.000476,30]
[354888272,1740784238797,-1457.41,0.000476,30]
[354888273,1740784238807,-2195.69,0.000476,30]
[354888275,1740784238816,-7102.76,0.000476,30]
[354888277,1740784238826,-7947.23,0.000476,30]
[354888279,1740784238837,-287.195776,0.000476,120]
[354888280,1740784238847,-151.0,0.000476,120]
[354888296,1740784239085,-287.195776,0.000476,120]
[354888297,1740784239101,-151.0,0.000476,120]
[354888298,1740784239111,-151.436809,0.000476,120]
[354888299,1740784239123,-151.0,0.000476,120]
[354888300,1740784239134,-151.0,0.000476,120]
[354888301,1740784239145,-151.0,0.000476,120]
[354888302,1740784239155,-151.0,0.000476,120]
[354888303,1740784239166,-192.3253,0.000476,120]
[354888304,1740784239176,-151.0,0.000476,120]
[354888305,1740784239186,-151.0,0.000476,120]
[354888306,1740784239196,-193.510981,0.000476,120]
[354888307,1740784239210,-151.0,0.000476,120]
[354888308,1740784239220,-682.618268,0.000476,120]
[354888309,1740784239231,-682.618268,0.000476,120]
[354888310,1740784239241,-151.0,0.000476,30]
[354888311,1740784239251,-151.0,0.000476,120]
[354888312,1740784239261,-151.0,0.000476,120]
[354888313,1740784239271,-151.0,0.000476,120]
[354888314,1740784239281,-151.0,0.000476,120]
[354888315,1740784239291,-342.30268,0.000476,120]
[354888316,1740784239301,-151.0,0.000476,120]
[354888318,1740784239309,-342.30268,0.000476,120]
[354888319,1740784239318,-151.0,0.000476,120]
[354888320,1740784239327,-153.458558,0.000476,120]
[354888321,1740784239337,-151.0,0.000476,120]
[354888323,1740784239348,-151.0,0.000476,120]
[354888324,1740784239357,-151.0,0.000476,120]
[354888326,1740784239367,-285.730142,0.000476,120]
[354888328,1740784239376,-285.730142,0.000476,120]
[354888330,1740784239385,-153.554292,0.00047668,5]
[354888332,1740784239395,-1210.87595965,0.000477,2]
[354888334,1740784239404,-151.0,0.000477,26]
[354888336,1740784239414,-190.54126788,0.000477,14]
[354888338,1740784239424,-800.0,0.00047723,14]
[354888341,1740784239433,-770.0,0.00047749,5]
[354888343,1740784239443,-500.0,0.00047756,10]
[354888345,1740784239453,-500.0,0.00047756,10]
[354888347,1740784239463,-200.0,0.0004777,77]
[354888349,1740784239473,-153.554292,0.00047789,2]
[354888351,1740784239483,-151.0,0.000478,120]
[354888353,1740784239492,-151.0,0.000478,120]
[354888355,1740784239501,-296.71062,0.000478,120]
[354888357,1740784239510,-214.689186,0.000478,120]
[354888359,1740784239520,-151.0,0.000478,120]
[354888361,1740784239530,-214.689186,0.000478,120]
[354888363,1740784239540,-151.0,0.000478,110]
[354888365,1740784239549,-151.0,0.000478,120]
[354888367,1740784239559,-151.0,0.000478,110]
[354888369,1740784239569,-151.0,0.000478,23]
[354888371,1740784239579,-151.0,0.000478,120]
[354888373,1740784239589,-287.195776,0.000478,120]
[354888375,1740784239600,-287.195776,0.000478,120]
[354888377,1740784239609,-151.0,0.000478,120]
[354888379,1740784239619,-151.0,0.000478,120]
[354888381,1740784239628,-151.0,0.000478,120]
[354888383,1740784239638,-151.0,0.000478,120]
[354888385,1740784239648,-151.0,0.000478,120]
[354888387,1740784239657,-151.0,0.000478,120]
[354888389,1740784239667,-152.372761,0.000478,120]
[354888391,1740784239676,-193.510981,0.000478,120]
[354888393,1740784239686,-151.0,0.000478,120]
[354888395,1740784239696,-682.618268,0.000478,120]
[354888397,1740784239705,-682.618268,0.000478,120]
[354888399,1740784239714,-151.0,0.000478,30]
[354888401,1740784239724,-151.0,0.000478,120]
[354888403,1740784239733,-151.0,0.000478,120]
[354888405,1740784239743,-1000.0,0.000479,120]
[354888407,1740784239752,-397.0,0.00047922,2]
[354888409,1740784239761,-153.554292,0.00047979,2]
[354888411,1740784239771,-13572.0,0.00048,10]
[354888413,1740784239781,-151.0,0.00048,120]
[354888415,1740784239791,-214.689186,0.00048,120]
[354888417,1740784239800,-151.0,0.00048,120]
[354888419,1740784239810,-214.689186,0.00048,120]
[354888421,1740784239819,-151.0,0.00048,110]
[354888423,1740784239829,-151.0,0.00048,120]
[354888425,1740784239838,-151.0,0.00048,110]
[354888427,1740784239848,-151.0,0.00048,29]
[354888428,1740784239858,-151.0,0.00048,120]
[354888429,1740784239868,-287.195776,0.00048,120]
[354888431,1740784239879,-287.195776,0.00048,120]
[354888433,1740784239889,-151.0,0.00048,120]
[354888435,1740784239899,-151.0,0.00048,120]
[354888437,1740784239908,-177.823027,0.00048,120]
[354888438,1740784239918,-151.0,0.00048,120]
[354888439,1740784239928,-215.0,0.00048,90]
[354888440,1740784239938,-151.0,0.00048,120]
[354888441,1740784239948,-151.0,0.00048,120]
[354888442,1740784239957,-682.618268,0.00048,120]
[354888444,1740784239967,-682.618268,0.00048,120]
[354888445,1740784239978,-151.0,0.00048,23]
[354888446,1740784239988,-151.0,0.00048,120]